[Event "Early-Titled-Tuesday-Blitz-February-27-2024"]
[Site "Chess.com"]
[Date "2024.02.27"]
[Round "6"]
[White "Casper"]
[Black "LikeWater"]
[Result "1-0"]
[WhiteElo "2552"]
[BlackElo "2710"]
[TimeControl "180+1"]
[EndTime "9:03:54 PST"]
[Termination "Casper won by resignation"]

1. e4 {[%clk 0:03:00.9]} 1... c5 {[%clk 0:02:59]} 2. d4 {[%clk 0:03:01]} 2...
cxd4 {[%clk 0:02:51.7]} 3. Qxd4 {[%clk 0:03:01.9]} 3... Nc6 {[%clk 0:02:47.1]}
4. Qe3 {[%clk 0:03:02.4]} 4... Nf6 {[%clk 0:02:41.6]} 5. Nc3 {[%clk 0:03:03.1]}
5... d5 {[%clk 0:02:41.1]} 6. exd5 {[%clk 0:03:04]} 6... Nxd5 {[%clk 0:02:41]}
7. Nxd5 {[%clk 0:03:04.9]} 7... Qxd5 {[%clk 0:02:41.1]} 8. Qb3 {[%clk
0:03:05.8]} 8... Qxb3 {[%clk 0:02:35.7]} 9. axb3 {[%clk 0:03:06.7]} 9... Bf5
{[%clk 0:02:33.3]} 10. c3 {[%clk 0:03:05.2]} 10... e5 {[%clk 0:02:31.5]} 11. Bb5
{[%clk 0:03:04.6]} 11... Bd6 {[%clk 0:02:27.4]} 12. Nf3 {[%clk 0:03:03.4]} 12...
Ke7 {[%clk 0:02:20.8]} 13. Be3 {[%clk 0:03:00.5]} 13... a6 {[%clk 0:02:17.9]}
14. Bxc6 {[%clk 0:03:00.3]} 14... bxc6 {[%clk 0:02:18.8]} 15. Nd2 {[%clk
0:03:01]} 15... Bd3 {[%clk 0:02:10.7]} 16. b4 {[%clk 0:02:46.1]} 16... Rhb8
{[%clk 0:02:04.1]} 17. Nb3 {[%clk 0:02:45.9]} 17... f5 {[%clk 0:01:52.1]} 18.
O-O-O {[%clk 0:02:11.9]} 18... e4 {[%clk 0:01:46.5]} 19. Rhe1 {[%clk 0:02:10.3]}
19... a5 {[%clk 0:01:12.8]} 20. Nxa5 {[%clk 0:01:45.4]} 20... Kd7 {[%clk
0:01:12.1]} 21. Nb3 {[%clk 0:01:09.7]} 21... Ra2 {[%clk 0:01:11.2]} 22. g3
{[%clk 0:00:53.4]} 22... Kc8 {[%clk 0:00:47.5]} 23. Bc5 {[%clk 0:00:47.2]} 23...
Be5 {[%clk 0:00:40.2]} 24. Bd4 {[%clk 0:00:47.3]} 24... Bxd4 {[%clk 0:00:35.5]}
25. Nxd4 {[%clk 0:00:48.2]} 25... c5 {[%clk 0:00:35.2]} 26. Nxf5 {[%clk
0:00:44.4]} 26... cxb4 {[%clk 0:00:31.2]} 27. Nd6+ {[%clk 0:00:45]} 27... Kc7
{[%clk 0:00:25.4]} 28. Nxe4 {[%clk 0:00:45.9]} 28... bxc3 {[%clk 0:00:23.5]} 29.
Nxc3 {[%clk 0:00:42.6]} 29... Bg6 {[%clk 0:00:16.6]} 30. Nxa2 {[%clk 0:00:42.3]}
1-0

[Event "Early-Titled-Tuesday-Blitz-February-27-2024"]
[Site "Chess.com"]
[Date "2024.02.27"]
[Round "6"]
[White "inagreV"]
[Black "MusicCityMaster"]
[Result "0-1"]
[WhiteElo "2396"]
[BlackElo "2558"]
[TimeControl "180+1"]
[EndTime "9:03:54 PST"]
[Termination "MusicCityMaster won by resignation"]

1. e4 {[%clk 0:03:00.9]} 1... e6 {[%clk 0:00:44.1]} 2. d4 {[%clk 0:02:57.1]}
2... d5 {[%clk 0:00:44.3]} 3. exd5 {[%clk 0:02:57.3]} 3... exd5 {[%clk
0:00:44.4]} 4. Nf3 {[%clk 0:02:58.2]} 4... Nc6 {[%clk 0:00:44.6]} 5. Bb5 {[%clk
0:02:57.8]} 5... Bg4 {[%clk 0:00:43.9]} 6. h3 {[%clk 0:02:54.7]} 6... Bh5 {[%clk
0:00:42.9]} 7. O-O {[%clk 0:02:53.5]} 7... Bd6 {[%clk 0:00:42.5]} 8. c4 {[%clk
0:02:50.7]} 8... a6 {[%clk 0:00:38.7]} 9. Bxc6+ {[%clk 0:02:49.6]} 9... bxc6
{[%clk 0:00:38.7]} 10. c5 {[%clk 0:02:50.5]} 10... Be7 {[%clk 0:00:32.9]} 11.
Bf4 {[%clk 0:02:50]} 11... Nf6 {[%clk 0:00:32]} 12. Nbd2 {[%clk 0:02:48]} 12...
O-O {[%clk 0:00:32.1]} 13. Re1 {[%clk 0:02:47.4]} 13... Re8 {[%clk 0:00:31.2]}
14. Qa4 {[%clk 0:02:46.7]} 14... Rb8 {[%clk 0:00:17.9]} 15. b3 {[%clk
0:02:39.1]} 15... Bxf3 {[%clk 0:00:13.4]} 16. Nxf3 {[%clk 0:02:38.9]} 16... Rb5
{[%clk 0:00:12.1]} 17. Ne5 {[%clk 0:02:38]} 17... Qa8 {[%clk 0:00:11.1]} 18. Re3
{[%clk 0:02:32.6]} 18... Bf8 {[%clk 0:00:10.2]} 19. Rae1 {[%clk 0:02:31.8]}
19... Ne4 {[%clk 0:00:10.3]} 20. f3 {[%clk 0:02:23.5]} 20... Nxc5 {[%clk
0:00:10.6]} 21. dxc5 {[%clk 0:01:53.6]} 21... Bxc5 {[%clk 0:00:11.5]} 22. Kh1
{[%clk 0:01:53.7]} 22... Bxe3 {[%clk 0:00:12]} 23. Rxe3 {[%clk 0:01:54]} 23...
f6 {[%clk 0:00:12.7]} 24. Ng4 {[%clk 0:01:49.2]} 24... Rxe3 {[%clk 0:00:13.4]}
25. Bxe3 {[%clk 0:01:50.1]} 25... Qe8 {[%clk 0:00:13]} 26. Qf4 {[%clk
0:01:50.4]} 26... Rb7 {[%clk 0:00:11.6]} 27. Bd4 {[%clk 0:01:46.6]} 27... Qe6
{[%clk 0:00:11.9]} 28. h4 {[%clk 0:01:45.6]} 28... a5 {[%clk 0:00:11.3]} 29. h5
{[%clk 0:01:45.7]} 29... h6 {[%clk 0:00:10.9]} 30. Kh2 {[%clk 0:01:45]} 30... a4
{[%clk 0:00:11]} 31. bxa4 {[%clk 0:01:43.2]} 31... Rb4 {[%clk 0:00:11.4]} 32.
Qd2 {[%clk 0:01:42.4]} 32... Rxa4 {[%clk 0:00:11.6]} 33. Nf2 {[%clk 0:01:30.9]}
33... Qf7 {[%clk 0:00:11.2]} 34. g4 {[%clk 0:01:30.3]} 34... f5 {[%clk
0:00:11.3]} 35. Nh3 {[%clk 0:01:27.6]} 35... fxg4 {[%clk 0:00:11.3]} 36. fxg4
{[%clk 0:01:28.5]} 36... Qf3 {[%clk 0:00:11.4]} 37. Nf2 {[%clk 0:01:21.2]} 37...
Ra3 {[%clk 0:00:11.9]} 38. Be5 {[%clk 0:01:19.8]} 38... c5 {[%clk 0:00:10]} 39.
Bxc7 {[%clk 0:01:19.5]} 39... d4 {[%clk 0:00:09.6]} 40. Qe1 {[%clk 0:01:18.1]}
40... Re3 {[%clk 0:00:09.1]} 41. Qg1 {[%clk 0:01:16]} 41... Re2 {[%clk
0:00:09.2]} 42. Bg3 {[%clk 0:01:16]} 42... d3 {[%clk 0:00:09.7]} 43. Qf1 {[%clk
0:01:15.1]} 43... d2 {[%clk 0:00:09.7]} 44. Kg1 {[%clk 0:01:14.3]} 44... Rxf2
{[%clk 0:00:09.8]} 45. Bxf2 {[%clk 0:01:15.2]} 45... d1=Q {[%clk 0:00:10]} 0-1

[Event "Early-Titled-Tuesday-Blitz-February-27-2024"]
[Site "Chess.com"]
[Date "2024.02.27"]
[Round "6"]
[White "BogdanDeac"]
[Black "Truequitos"]
[Result "1-0"]
[WhiteElo "2981"]
[BlackElo "2589"]
[TimeControl "180+1"]
[EndTime "9:04:09 PST"]
[Termination "BogdanDeac won by resignation"]

1. a4 {[%clk 0:03:00.9]} 1... d5 {[%clk 0:02:55.4]} 2. e3 {[%clk 0:03:00]} 2...
Nf6 {[%clk 0:02:54.8]} 3. Nf3 {[%clk 0:02:56.8]} 3... g6 {[%clk 0:02:52.4]} 4.
b4 {[%clk 0:02:55.6]} 4... a5 {[%clk 0:02:51.9]} 5. b5 {[%clk 0:02:54.9]} 5...
Bg7 {[%clk 0:02:51.4]} 6. Bb2 {[%clk 0:02:54.8]} 6... c5 {[%clk 0:02:52]} 7. c4
{[%clk 0:02:52]} 7... b6 {[%clk 0:02:49.4]} 8. cxd5 {[%clk 0:02:49.8]} 8... O-O
{[%clk 0:02:45.1]} 9. Bc4 {[%clk 0:02:44.8]} 9... Nxd5 {[%clk 0:02:43.7]} 10.
Bxg7 {[%clk 0:02:44]} 10... Kxg7 {[%clk 0:02:44.6]} 11. O-O {[%clk 0:02:44.2]}
11... Bb7 {[%clk 0:02:44.2]} 12. d4 {[%clk 0:02:42.8]} 12... Nd7 {[%clk
0:02:41.1]} 13. Qb3 {[%clk 0:02:36.5]} 13... e6 {[%clk 0:02:39.4]} 14. Nbd2
{[%clk 0:02:36.3]} 14... Rc8 {[%clk 0:02:35.1]} 15. Rac1 {[%clk 0:02:31.4]}
15... Qe7 {[%clk 0:02:34.5]} 16. Rfe1 {[%clk 0:02:28.6]} 16... Kg8 {[%clk
0:02:27.6]} 17. e4 {[%clk 0:02:25.3]} 17... Nb4 {[%clk 0:02:21.6]} 18. d5 {[%clk
0:02:25.6]} 18... e5 {[%clk 0:02:14.3]} 19. Rcd1 {[%clk 0:02:15.7]} 19... Qd6
{[%clk 0:02:13.4]} 20. Nf1 {[%clk 0:02:12.3]} 20... Rce8 {[%clk 0:02:10.7]} 21.
Ng3 {[%clk 0:02:11]} 21... f6 {[%clk 0:02:02]} 22. Nd2 {[%clk 0:02:08.6]} 22...
Kh8 {[%clk 0:02:00.7]} 23. Be2 {[%clk 0:02:08.1]} 23... Rf7 {[%clk 0:01:58.6]}
24. Nc4 {[%clk 0:02:08]} 24... Qf8 {[%clk 0:01:49.6]} 25. d6 {[%clk 0:01:55.5]}
25... f5 {[%clk 0:01:43.6]} 26. exf5 {[%clk 0:01:55.6]} 26... gxf5 {[%clk
0:01:43.1]} 27. Bh5 {[%clk 0:01:55.8]} 27... f4 {[%clk 0:01:32.3]} 28. Nxb6
{[%clk 0:01:48.7]} 28... fxg3 {[%clk 0:01:18.1]} 29. Qxf7 {[%clk 0:01:32.8]}
29... Qxf7 {[%clk 0:01:14.8]} 30. Bxf7 {[%clk 0:01:31.1]} 30... gxf2+ {[%clk
0:01:15.7]} 31. Kxf2 {[%clk 0:01:31.3]} 31... Rf8 {[%clk 0:01:16.2]} 32. Nxd7
{[%clk 0:01:31.6]} 32... Rxf7+ {[%clk 0:01:16.4]} 33. Kg1 {[%clk 0:01:32.3]}
33... Rxd7 {[%clk 0:01:15.9]} 34. Rxe5 {[%clk 0:01:32.5]} 34... Kg7 {[%clk
0:00:57]} 35. Rxc5 {[%clk 0:01:16]} 35... Kf6 {[%clk 0:00:48.6]} 36. b6 {[%clk
0:01:08.2]} 36... Nc6 {[%clk 0:00:45.2]} 37. Rh5 {[%clk 0:01:07.9]} 37... Kg6
{[%clk 0:00:41.7]} 38. Rc5 {[%clk 0:01:06.6]} 38... Kf6 {[%clk 0:00:41.7]} 39.
Rd2 {[%clk 0:01:06.3]} 39... Ke6 {[%clk 0:00:40]} 40. Rh5 {[%clk 0:01:05.7]}
40... Kf6 {[%clk 0:00:20.8]} 41. h3 {[%clk 0:01:00.5]} 41... Ne5 {[%clk
0:00:19.3]} 42. Rf2+ {[%clk 0:00:59]} 1-0

[Event "Early-Titled-Tuesday-Blitz-February-27-2024"]
[Site "Chess.com"]
[Date "2024.02.27"]
[Round "6"]
[White "Keures"]
[Black "JulbeNn"]
[Result "1-0"]
[WhiteElo "2382"]
[BlackElo "2525"]
[TimeControl "180+1"]
[EndTime "9:04:09 PST"]
[Termination "Keures won on time"]

1. d4 {[%clk 0:03:00.9]} 1... Nf6 {[%clk 0:02:59.9]} 2. c4 {[%clk 0:03:00.8]}
2... c5 {[%clk 0:03:00.2]} 3. d5 {[%clk 0:03:00.8]} 3... b5 {[%clk 0:03:00.9]}
4. cxb5 {[%clk 0:03:01.1]} 4... a6 {[%clk 0:03:01.5]} 5. b6 {[%clk 0:03:01.8]}
5... d6 {[%clk 0:02:59.9]} 6. Nc3 {[%clk 0:03:02.4]} 6... Qxb6 {[%clk
0:02:57.8]} 7. e4 {[%clk 0:03:01.7]} 7... g6 {[%clk 0:02:55.6]} 8. Be2 {[%clk
0:03:01.8]} 8... Bg7 {[%clk 0:02:55.5]} 9. Nf3 {[%clk 0:03:02.2]} 9... O-O
{[%clk 0:02:50.4]} 10. Nd2 {[%clk 0:03:01.2]} 10... Nbd7 {[%clk 0:02:38.6]} 11.
a4 {[%clk 0:03:00.2]} 11... Ne5 {[%clk 0:02:34.6]} 12. h3 {[%clk 0:02:45.5]}
12... Nh5 {[%clk 0:02:04.7]} 13. a5 {[%clk 0:02:32.2]} 13... Qc7 {[%clk
0:01:59.6]} 14. Bxh5 {[%clk 0:02:30.2]} 14... Nd3+ {[%clk 0:01:58.8]} 15. Kf1
{[%clk 0:02:25.2]} 15... gxh5 {[%clk 0:01:47.2]} 16. Nc4 {[%clk 0:02:03.7]}
16... Nxc1 {[%clk 0:01:42.4]} 17. Rxc1 {[%clk 0:02:02.7]} 17... Rb8 {[%clk
0:01:31.3]} 18. Nb6 {[%clk 0:02:01.1]} 18... Bd7 {[%clk 0:01:28]} 19. Kg1 {[%clk
0:01:45.7]} 19... f5 {[%clk 0:01:27.1]} 20. Qe2 {[%clk 0:01:36.4]} 20... fxe4
{[%clk 0:01:15.8]} 21. Nxe4 {[%clk 0:01:30.8]} 21... Bf5 {[%clk 0:01:03.3]} 22.
Ng5 {[%clk 0:01:13.6]} 22... Bd4 {[%clk 0:00:46]} 23. Ne6 {[%clk 0:01:05.7]}
23... Bxe6 {[%clk 0:00:39.6]} 24. Qxe6+ {[%clk 0:01:05.2]} 24... Kh8 {[%clk
0:00:37.1]} 25. Rc2 {[%clk 0:01:05.1]} 25... Rf6 {[%clk 0:00:31.8]} 26. Qe4
{[%clk 0:00:53.7]} 26... Qd8 {[%clk 0:00:05.1]} 27. Kh2 {[%clk 0:00:47.4]} 27...
Bxf2 {[%clk 0:00:03.3]} 28. Qe2 {[%clk 0:00:38.1]} 28... Bd4 {[%clk 0:00:02.5]}
29. Rf1 {[%clk 0:00:32.2]} 1-0

[Event "Early-Titled-Tuesday-Blitz-February-27-2024"]
[Site "Chess.com"]
[Date "2024.02.27"]
[Round "6"]
[White "kuba2006"]
[Black "banhgiahuy2606"]
[Result "0-1"]
[WhiteElo "2466"]
[BlackElo "2655"]
[TimeControl "180+1"]
[EndTime "9:04:11 PST"]
[Termination "banhgiahuy2606 won on time"]

1. e4 {[%clk 0:03:00.9]} 1... e6 {[%clk 0:02:57.5]} 2. d4 {[%clk 0:02:56.4]}
2... d5 {[%clk 0:02:57.4]} 3. e5 {[%clk 0:02:56.6]} 3... c5 {[%clk 0:02:56.6]}
4. c3 {[%clk 0:02:56.4]} 4... Qb6 {[%clk 0:02:57.3]} 5. Nf3 {[%clk 0:02:55.3]}
5... Bd7 {[%clk 0:02:57.9]} 6. Bd3 {[%clk 0:02:54.3]} 6... Bb5 {[%clk
0:02:56.5]} 7. O-O {[%clk 0:02:50.5]} 7... Bxd3 {[%clk 0:02:54.7]} 8. Qxd3
{[%clk 0:02:51.4]} 8... Nd7 {[%clk 0:02:53.9]} 9. a3 {[%clk 0:02:49.3]} 9... c4
{[%clk 0:02:49.5]} 10. Qe2 {[%clk 0:02:47.5]} 10... Ne7 {[%clk 0:02:49.9]} 11.
Nbd2 {[%clk 0:02:31.4]} 11... Qc6 {[%clk 0:02:48.8]} 12. b4 {[%clk 0:02:27.8]}
12... cxb3 {[%clk 0:02:47.9]} 13. Nxb3 {[%clk 0:02:27.2]} 13... Qxc3 {[%clk
0:02:45.9]} 14. Rb1 {[%clk 0:02:26.5]} 14... Qc4 {[%clk 0:02:45.8]} 15. Qb2
{[%clk 0:01:49.8]} 15... Nc6 {[%clk 0:02:42.6]} 16. Be3 {[%clk 0:01:40.1]} 16...
Nb6 {[%clk 0:02:38.6]} 17. Rfc1 {[%clk 0:01:35.2]} 17... Qb5 {[%clk 0:02:38.3]}
18. Qc3 {[%clk 0:00:23.5]} 18... Na4 {[%clk 0:02:18.1]} 19. Qd2 {[%clk
0:00:20.8]} 19... Qa6 {[%clk 0:01:56.8]} 20. Rc2 {[%clk 0:00:17.5]} 20... Be7
{[%clk 0:01:54.3]} 21. Nc5 {[%clk 0:00:15.1]} 21... Nxc5 {[%clk 0:01:47.1]} 22.
dxc5 {[%clk 0:00:16]} 22... O-O {[%clk 0:01:46.5]} 23. h4 {[%clk 0:00:15.1]}
23... f6 {[%clk 0:01:42.9]} 24. exf6 {[%clk 0:00:13.5]} 24... Bxf6 {[%clk
0:01:42.5]} 25. h5 {[%clk 0:00:13.1]} 25... Rad8 {[%clk 0:01:41.6]} 26. h6
{[%clk 0:00:12.6]} 26... e5 {[%clk 0:01:41.9]} 27. Bg5 {[%clk 0:00:12]} 27... e4
{[%clk 0:01:37.1]} 28. hxg7 {[%clk 0:00:11.2]} 28... Kxg7 {[%clk 0:01:23.4]} 29.
Nh4 {[%clk 0:00:09.2]} 29... Kh8 {[%clk 0:01:15.6]} 30. Nf5 {[%clk 0:00:08.6]}
30... Ne5 {[%clk 0:01:10.3]} 31. Nd6 {[%clk 0:00:05.5]} 31... Bxg5 {[%clk
0:01:08.4]} 32. Qxg5 {[%clk 0:00:06.4]} 32... Rxd6 {[%clk 0:00:48.4]} 33. cxd6
{[%clk 0:00:06]} 33... Qxd6 {[%clk 0:00:48.5]} 0-1

[Event "Early-Titled-Tuesday-Blitz-February-27-2024"]
[Site "Chess.com"]
[Date "2024.02.27"]
[Round "6"]
[White "FredddieCroderg"]
[Black "amanjazu"]
[Result "0-1"]
[WhiteElo "2294"]
[BlackElo "2514"]
[TimeControl "180+1"]
[EndTime "9:04:12 PST"]
[Termination "amanjazu won by checkmate"]

1. e4 {[%clk 0:03:00.9]} 1... Nf6 {[%clk 0:02:59.6]} 2. Nc3 {[%clk 0:02:54.7]}
2... d5 {[%clk 0:02:59.3]} 3. e5 {[%clk 0:02:53.5]} 3... Nfd7 {[%clk 0:02:57.8]}
4. f4 {[%clk 0:02:33.9]} 4... e6 {[%clk 0:02:56]} 5. Nf3 {[%clk 0:02:33.7]} 5...
c5 {[%clk 0:02:54.7]} 6. d4 {[%clk 0:02:33.4]} 6... Nc6 {[%clk 0:02:55.2]} 7.
Ne2 {[%clk 0:02:29.8]} 7... cxd4 {[%clk 0:02:47.9]} 8. Nexd4 {[%clk 0:02:28.7]}
8... Bc5 {[%clk 0:02:48.6]} 9. c3 {[%clk 0:02:27.7]} 9... O-O {[%clk 0:02:48.1]}
10. Bd3 {[%clk 0:02:27.7]} 10... Qb6 {[%clk 0:02:44.4]} 11. Bxh7+ {[%clk
0:02:25.2]} 11... Kxh7 {[%clk 0:02:28.7]} 12. Ng5+ {[%clk 0:02:20.9]} 12... Kg6
{[%clk 0:02:28.2]} 13. Qg4 {[%clk 0:02:16.5]} 13... f5 {[%clk 0:01:38.6]} 14.
Qh4 {[%clk 0:02:00.3]} 14... Ndxe5 {[%clk 0:01:31.1]} 15. Qh7+ {[%clk
0:01:53.9]} 15... Kf6 {[%clk 0:01:30.8]} 16. fxe5+ {[%clk 0:01:53.9]} 16... Nxe5
{[%clk 0:01:31.2]} 17. Ngf3 {[%clk 0:01:30.4]} 17... Nxf3+ {[%clk 0:01:26.2]}
18. Nxf3 {[%clk 0:01:27.7]} 18... Bf2+ {[%clk 0:01:22.6]} 19. Ke2 {[%clk
0:01:24.6]} 19... f4 {[%clk 0:00:59.2]} 20. Rf1 {[%clk 0:01:07.2]} 20... Be3
{[%clk 0:00:57.2]} 21. Nd4 {[%clk 0:01:02.9]} 21... e5 {[%clk 0:00:39.1]} 22.
Bxe3 {[%clk 0:00:57.6]} 22... Qxb2+ {[%clk 0:00:39.6]} 23. Bd2 {[%clk
0:00:55.3]} 23... Bg4+ {[%clk 0:00:32.1]} 24. Nf3 {[%clk 0:00:51.8]} 24... Rh8
{[%clk 0:00:27.2]} 25. Qb1 {[%clk 0:00:50.3]} 25... Qxb1 {[%clk 0:00:24.5]} 26.
Raxb1 {[%clk 0:00:49.5]} 26... e4 {[%clk 0:00:25.1]} 27. Rxb7 {[%clk 0:00:37.8]}
27... Rxh2 {[%clk 0:00:24.1]} 28. Bxf4 {[%clk 0:00:29.5]} 28... Rxg2+ {[%clk
0:00:22.2]} 29. Ke3 {[%clk 0:00:25.2]} 29... exf3 {[%clk 0:00:21.9]} 30. Bd6
{[%clk 0:00:16.5]} 30... Re8+ {[%clk 0:00:20.4]} 31. Kf4 {[%clk 0:00:16.2]}
31... Re4# {[%clk 0:00:19.3]} 0-1

[Event "Early-Titled-Tuesday-Blitz-February-27-2024"]
[Site "Chess.com"]
[Date "2024.02.27"]
[Round "6"]
[White "EvgenyBurmakin"]
[Black "HelvertHernandez"]
[Result "1-0"]
[WhiteElo "2341"]
[BlackElo "2003"]
[TimeControl "180+1"]
[EndTime "9:04:12 PST"]
[Termination "EvgenyBurmakin won by resignation"]

1. e4 {[%clk 0:03:00.9]} 1... c5 {[%clk 0:02:59]} 2. Nc3 {[%clk 0:03:00.6]} 2...
Nc6 {[%clk 0:02:58.2]} 3. Bb5 {[%clk 0:03:00.6]} 3... g6 {[%clk 0:02:56.5]} 4.
Bxc6 {[%clk 0:02:58]} 4... bxc6 {[%clk 0:02:55.8]} 5. f4 {[%clk 0:02:58.5]} 5...
Bg7 {[%clk 0:02:55.2]} 6. Nf3 {[%clk 0:02:58.6]} 6... e6 {[%clk 0:02:54.8]} 7.
d3 {[%clk 0:02:58.7]} 7... d6 {[%clk 0:02:54.2]} 8. O-O {[%clk 0:02:58.3]} 8...
Ne7 {[%clk 0:02:54]} 9. Qe1 {[%clk 0:02:56.4]} 9... O-O {[%clk 0:02:53]} 10. f5
{[%clk 0:02:41]} 10... exf5 {[%clk 0:02:39.9]} 11. Qh4 {[%clk 0:02:37.9]} 11...
fxe4 {[%clk 0:02:33.1]} 12. dxe4 {[%clk 0:02:38.8]} 12... d5 {[%clk 0:02:28.8]}
13. Bh6 {[%clk 0:02:22.6]} 13... dxe4 {[%clk 0:02:20.1]} 14. Bxg7 {[%clk
0:02:07.5]} 14... Nf5 {[%clk 0:02:10.8]} 15. Qxd8 {[%clk 0:01:59.2]} 15... Rxd8
{[%clk 0:02:10.5]} 16. Bf6 {[%clk 0:01:59.3]} 16... exf3 {[%clk 0:01:43]} 17.
Bxd8 {[%clk 0:01:58]} 17... fxg2 {[%clk 0:01:42.8]} 18. Rfe1 {[%clk 0:01:53.1]}
18... Be6 {[%clk 0:01:34.2]} 19. Bf6 {[%clk 0:01:51.1]} 19... h5 {[%clk
0:01:28.4]} 20. Rad1 {[%clk 0:01:47]} 20... Kh7 {[%clk 0:01:25.6]} 21. Rd8
{[%clk 0:01:33.4]} 21... Rxd8 {[%clk 0:01:21.7]} 22. Bxd8 {[%clk 0:01:34.3]}
22... Nd4 {[%clk 0:01:17.4]} 23. Rc1 {[%clk 0:01:23.9]} 23... Bh3 {[%clk
0:01:09.6]} 24. Bf6 {[%clk 0:01:18.4]} 24... Nf3+ {[%clk 0:00:54.3]} 25. Kf2
{[%clk 0:01:18.1]} 25... Nxh2 {[%clk 0:00:47.2]} 26. Bh4 {[%clk 0:00:57.5]}
26... Nf1 {[%clk 0:00:24.5]} 27. Ne2 {[%clk 0:00:53.7]} 27... Kg7 {[%clk
0:00:23]} 28. Ng1 {[%clk 0:00:51.9]} 28... f6 {[%clk 0:00:22.3]} 29. Nxh3 {[%clk
0:00:50.6]} 29... g5 {[%clk 0:00:20.7]} 30. Kxg2 {[%clk 0:00:40.4]} 30... gxh4
{[%clk 0:00:19.6]} 31. Rxf1 {[%clk 0:00:38.9]} 31... Kg6 {[%clk 0:00:19.9]} 32.
Nf4+ {[%clk 0:00:37.8]} 32... Kf5 {[%clk 0:00:20.2]} 33. Nxh5+ {[%clk
0:00:36.8]} 33... Kg4 {[%clk 0:00:20.5]} 34. Nf4 {[%clk 0:00:37.4]} 34... f5
{[%clk 0:00:19.9]} 35. Nh3 {[%clk 0:00:37.2]} 35... c4 {[%clk 0:00:19.2]} 36.
Rf4+ {[%clk 0:00:37.4]} 36... Kh5 {[%clk 0:00:19]} 37. Rxf5+ {[%clk 0:00:38.1]}
37... Kg6 {[%clk 0:00:19.8]} 38. Rc5 {[%clk 0:00:38.6]} 1-0

[Event "Early-Titled-Tuesday-Blitz-February-27-2024"]
[Site "Chess.com"]
[Date "2024.02.27"]
[Round "6"]
[White "rasmussvane"]
[Black "Rodalquilar"]
[Result "1-0"]
[WhiteElo "2949"]
[BlackElo "2786"]
[TimeControl "180+1"]
[EndTime "9:04:15 PST"]
[Termination "rasmussvane won on time"]

1. Nf3 {[%clk 0:02:59.7]} 1... d5 {[%clk 0:03:00.1]} 2. g3 {[%clk 0:02:55.7]}
2... Nf6 {[%clk 0:02:59.5]} 3. Bg2 {[%clk 0:02:53.7]} 3... e6 {[%clk 0:02:58.1]}
4. O-O {[%clk 0:02:53.6]} 4... Be7 {[%clk 0:02:58.6]} 5. c4 {[%clk 0:02:49.3]}
5... O-O {[%clk 0:02:58.6]} 6. b3 {[%clk 0:02:49.3]} 6... d4 {[%clk 0:02:57.6]}
7. e3 {[%clk 0:02:49.4]} 7... c5 {[%clk 0:02:57.8]} 8. exd4 {[%clk 0:02:48.6]}
8... cxd4 {[%clk 0:02:58.2]} 9. Ne5 {[%clk 0:02:41.7]} 9... Qc7 {[%clk
0:02:56.6]} 10. Re1 {[%clk 0:02:39.9]} 10... Nbd7 {[%clk 0:02:53.1]} 11. Nxd7
{[%clk 0:02:37.6]} 11... Bxd7 {[%clk 0:02:53.6]} 12. Ba3 {[%clk 0:02:37.7]}
12... Bxa3 {[%clk 0:02:48.8]} 13. Nxa3 {[%clk 0:02:38.6]} 13... Bc6 {[%clk
0:02:48.9]} 14. d3 {[%clk 0:02:36.2]} 14... Bxg2 {[%clk 0:02:48.3]} 15. Kxg2
{[%clk 0:02:37.1]} 15... Qc6+ {[%clk 0:02:38.4]} 16. Qf3 {[%clk 0:02:36.6]}
16... Qxf3+ {[%clk 0:02:38.4]} 17. Kxf3 {[%clk 0:02:37.5]} 17... Rfd8 {[%clk
0:02:34.5]} 18. Rac1 {[%clk 0:02:16.7]} 18... Rac8 {[%clk 0:02:32.9]} 19. b4
{[%clk 0:02:13.5]} 19... a6 {[%clk 0:02:29.3]} 20. Re2 {[%clk 0:02:11.2]} 20...
Nd7 {[%clk 0:02:29.3]} 21. c5 {[%clk 0:02:07.6]} 21... Nb8 {[%clk 0:02:29.4]}
22. Nc4 {[%clk 0:02:05.8]} 22... Nc6 {[%clk 0:02:27.6]} 23. a3 {[%clk
0:02:06.2]} 23... Na7 {[%clk 0:02:26]} 24. a4 {[%clk 0:01:59.7]} 24... Nc6
{[%clk 0:02:25.6]} 25. Rb2 {[%clk 0:01:59.2]} 25... Ne7 {[%clk 0:01:44.6]} 26.
Nd6 {[%clk 0:01:41]} 26... Rc7 {[%clk 0:01:35.3]} 27. b5 {[%clk 0:01:35.9]}
27... axb5 {[%clk 0:01:34.6]} 28. Rxb5 {[%clk 0:01:31.3]} 28... Rdd7 {[%clk
0:00:47.6]} 29. Rcb1 {[%clk 0:01:30.8]} 29... Nd5 {[%clk 0:00:24.1]} 30. Rxb7
{[%clk 0:01:29.3]} 30... h5 {[%clk 0:00:24.6]} 31. a5 {[%clk 0:01:24.1]} 31...
Nc3 {[%clk 0:00:16.5]} 32. a6 {[%clk 0:00:52.2]} 32... Nxb1 {[%clk 0:00:12.1]}
33. a7 {[%clk 0:00:52.5]} 33... Nd2+ {[%clk 0:00:02.3]} 34. Ke2 {[%clk
0:00:51.9]} 34... Rd8 {[%clk 0:00:02.9]} 35. Rxc7 {[%clk 0:00:46.1]} 35... Nb3
{[%clk 0:00:03.3]} 36. Rc8 {[%clk 0:00:46.4]} 36... Rxc8 {[%clk 0:00:03.1]} 37.
Nxc8 {[%clk 0:00:46.8]} 37... Nxc5 {[%clk 0:00:03.1]} 38. a8=Q {[%clk
0:00:47.1]} 1-0